fUSD/lending_fUSD_20260512
["ID","MTS","AMOUNT","RATE_DAILY","PERIOD"]
[422085234,1778560115000,64.01279912,0.00011006,2]
[422085240,1778560147000,-510.52,0.00012066,2]
[422085241,1778560147000,-113.57271238,0.00012119,2]
[422085239,1778560147000,-192.15780863,0.00011978,2]
[422085267,1778560231000,-420.0,0.00017164,2]
[422085265,1778560231000,-510.52,0.00016833,2]
[422085266,1778560231000,-1680.0,0.00016835,2]
[422085264,1778560231000,-510.52,0.00016304,2]
[422085262,1778560231000,-595.38479004,0.00015846,2]
[422085260,1778560231000,-510.52,0.00015774,2]
[422085261,1778560231000,-160.87,0.00015804,2]
[422085259,1778560231000,-300.0,0.00015694,2]
[422085258,1778560231000,-4907.47,0.0001531,2]
[422085268,1778560231000,-510.52,0.00017363,2]
[422085257,1778560231000,-1200.0,0.00015309,2]
[422085256,1778560231000,-510.52,0.00015244,2]
[422085255,1778560231000,-510.52,0.00014714,2]
[422085254,1778560231000,-258.36971629,0.00014301,2]
[422085253,1778560231000,-510.52,0.00014185,2]
[422085252,1778560231000,-250.0,0.00014,2]
[422085263,1778560231000,-300.0,0.00016,2]
[422085269,1778560231000,-510.52,0.00017893,2]
[422085271,1778560231000,-510.52,0.00018423,2]
[422085272,1778560231000,-2351.0,0.00018512,2]
[422085293,1778560231000,-1545.2,0.00019804,2]
[422085291,1778560231000,-5305.79,0.00019774,2]
[422085288,1778560231000,-2500.0,0.00019755,2]
[422085290,1778560231000,-150.0,0.00019774,2]
[422085249,1778560231000,-250.0,0.00013176,2]
[422085284,1778560231000,-500.0,0.00019668,2]
[422085285,1778560231000,-250.07,0.00019672,2]
[422085270,1778560231000,-523.14,0.000183,2]
[422085281,1778560231000,-150.0,0.00019666,2]
[422085280,1778560231000,-510.52,0.00019482,2]
[422085274,1778560231000,-587.0,0.00018772,2]
[422085276,1778560231000,-166.66,0.00019086,2]
[422085275,1778560231000,-510.52,0.00018952,2]
[422085277,1778560231000,-850.0,0.00019086,2]
[422085273,1778560231000,-166.66,0.00018692,2]
[422085278,1778560231000,-1852.42,0.00019278,2]
[422085279,1778560231000,-166.66,0.00019479,2]
[422085289,1778560231000,-2840.0,0.00019764,2]
[422085248,1778560231000,-150.32,0.00013176,2]
[422085251,1778560231000,-510.52,0.00013655,2]
[422085247,1778560231000,-510.52,0.00013125,2]
[422085246,1778560231000,-510.52,0.00012595,2]
[422085245,1778560231000,-112.42728762,0.00012119,2]
[422085250,1778560231000,-252.79727368,0.00013331,2]
[422085353,1778560232000,-248.12623186,0.00022093,2]
[422085359,1778560232000,-150.0,0.00022093,2]
[422085358,1778560232000,-150.0,0.00022093,2]
[422085352,1778560232000,-150.0,0.00022093,2]
[422085351,1778560232000,-150.0,0.00022093,2]
[422085349,1778560232000,-150.0,0.00022093,4]
[422085354,1778560232000,-150.0,0.00022093,2]
[422085348,1778560232000,-405.0,0.00022,2]
[422085347,1778560232000,-200.0,0.00022,2]
[422085341,1778560232000,-200.0,0.00021,2]
[422085350,1778560232000,-249.47580521,0.00022093,2]
[422085355,1778560232000,-150.0,0.00022093,2]
[422085361,1778560232000,-150.0,0.00022172,4]
[422085356,1778560232000,-150.0,0.00022093,2]
[422085344,1778560232000,-165.86,0.00021539,2]
[422085362,1778560232000,-150.0,0.00022212,4]
[422085363,1778560232000,-150.0,0.00022238,4]
[422085365,1778560232000,-150.0,0.00022291,4]
[422085364,1778560232000,-150.0,0.00022252,4]
[422085366,1778560232000,-150.0,0.00022331,4]
[422085367,1778560232000,-150.0,0.00022339,4]
[422085368,1778560232000,-165.86,0.0002236,2]
[422085369,1778560232000,-150.0,0.0002237,4]
[422085370,1778560232000,-150.0,0.00022382,4]
[422085371,1778560232000,-150.0,0.000224,4]
[422085357,1778560232000,-150.0,0.00022093,2]
[422085345,1778560232000,-5000.0,0.00021918,2]
[422085342,1778560232000,-405.0,0.00021,2]
[422085343,1778560232000,-676.0,0.00021417,2]
[422085295,1778560232000,-2403.79,0.00019837,2]
[422085297,1778560232000,-500.0,0.00019837,2]
[422085300,1778560232000,-1000.0,0.00019849,2]
[422085302,1778560232000,-500.0,0.00019873,2]
[422085304,1778560232000,-166.66,0.00019873,2]
[422085308,1778560232000,-500.0,0.00019973,2]
[422085306,1778560232000,-165.86,0.00019897,2]
[422085312,1778560232000,-249.39922294,0.00019973,2]
[422085310,1778560232000,-151.0,0.00019973,2]
[422085318,1778560232000,-510.52,0.00020012,2]
[422085314,1778560232000,-200.0,0.0002,2]
[422085321,1778560232000,-152.49,0.00020161,2]
[422085346,1778560232000,-676.0,0.00021939,2]
[422085316,1778560232000,-405.0,0.0002,2]
[422085322,1778560232000,-635.29,0.00020243,2]
[422085324,1778560232000,-500.0,0.00020247,2]
[422085326,1778560232000,-166.66,0.00020267,2]
[422085328,1778560232000,-2729.0,0.00020356,2]
[422085335,1778560232000,-823.0,0.0002053,2]
[422085331,1778560232000,-500.0,0.00020521,2]
[422085337,1778560232000,-1701.05,0.00020615,2]
[422085336,1778560232000,-510.52,0.00020542,2]
[422085339,1778560232000,-165.86,0.00020718,2]
[422085338,1778560232000,-166.66,0.0002066,2]
[422085340,1778560232000,-676.0,0.00020894,2]
[422085372,1778560232000,-150.0,0.0002241,4]
[422085319,1778560232000,-665.0,0.00020136,2]
[422085373,1778560232000,-150.0,0.00022449,4]
[422085360,1778560232000,-150.0,0.00022133,4]
[422085375,1778560232000,-676.0,0.00022461,2]
[422085403,1778560232000,-150.0,0.00023043,4]
[422085407,1778560232000,-150.0,0.00023123,4]
[422085404,1778560232000,-150.0,0.00023075,4]
[422085408,1778560232000,-150.0,0.00023162,4]
[422085411,1778560232000,-150.0,0.00023202,4]
[422085412,1778560232000,-150.0,0.00023241,4]
[422085410,1778560232000,-1701.05,0.00023191,2]
[422085414,1778560232000,-150.0,0.00023281,4]
[422085413,1778560232000,-150.0,0.00023248,4]
[422085419,1778560232000,-150.0,0.00023393,4]
[422085417,1778560232000,-150.0,0.00023321,4]
[422085421,1778560232000,-150.0,0.00023439,4]
[422085415,1778560232000,-150.0,0.00023321,4]
[422085416,1778560232000,-150.0,0.00023321,4]
[422085422,1778560232000,-150.0,0.00023479,4]
[422085374,1778560232000,-1152.0,0.00022453,2]
[422085420,1778560232000,-150.0,0.000234,4]
[422085425,1778560232000,-150.0,0.00023537,4]
[422085423,1778560232000,-194.1,0.00023486,2]
[422085424,1778560232000,-150.0,0.00023519,4]
[422085426,1778560232000,-150.0,0.00023558,4]
[422085427,1778560232000,-150.0,0.00023566,4]
[422085428,1778560232000,-200.0,0.00023583,2]
[422085430,1778560232000,-150.0,0.00023627,4]
[422085429,1778560232000,-150.0,0.00023598,4]
[422085432,1778560232000,-150.0,0.00023677,4]
[422085431,1778560232000,-150.0,0.00023637,4]
[422085405,1778560232000,-150.0,0.00023083,4]
[422085409,1778560232000,-165.86,0.00023181,2]
[422085418,1778560232000,-150.0,0.0002336,4]
[422085401,1778560232000,-150.0,0.00023004,4]
[422085406,1778560232000,-150.0,0.00023104,4]
[422085376,1778560232000,-150.0,0.00022489,4]
[422085378,1778560232000,-150.0,0.00022529,4]
[422085377,1778560232000,-150.0,0.00022526,4]
[422085379,1778560232000,-150.0,0.00022568,4]
[422085382,1778560232000,-150.0,0.00022647,4]
[422085383,1778560232000,-150.0,0.00022671,4]
[422085381,1778560232000,-150.0,0.00022608,4]
[422085384,1778560232000,-150.0,0.00022687,4]
[422085385,1778560232000,-150.0,0.00022707,4]
[422085386,1778560232000,-150.0,0.00022727,4]
[422085387,1778560232000,-150.0,0.00022766,4]
[422085389,1778560232000,-150.0,0.00022815,4]
[422085380,1778560232000,-150.0,0.00022584,4]
[422085388,1778560232000,-150.0,0.00022806,4]
[422085402,1778560232000,-150.0,0.00023014,4]
[422085393,1778560232000,-150.0,0.00022885,4]
[422085400,1778560232000,-405.0,0.00023,2]
[422085398,1778560232000,-676.0,0.00022984,2]
[422085399,1778560232000,-200.0,0.00023,2]
[422085396,1778560232000,-150.0,0.0002296,4]
[422085395,1778560232000,-150.0,0.00022925,4]
[422085390,1778560232000,-150.0,0.0002283,4]
[422085391,1778560232000,-150.0,0.00022845,4]
[422085394,1778560232000,-150.0,0.00022911,4]
[422085397,1778560232000,-150.0,0.00022964,4]
[422085392,1778560232000,-271.97,0.00022881,2]
[422085461,1778560233000,-150.0,0.00024231,4]
[422085454,1778560233000,-150.0,0.00024115,4]
[422085455,1778560233000,-150.0,0.00024152,4]
[422085458,1778560233000,-9999.99,0.00024174,2]
[422085451,1778560233000,-150.0,0.00024057,4]
[422085453,1778560233000,-150.0,0.00024112,4]
[422085460,1778560233000,-150.0,0.00024192,4]
[422085466,1778560233000,-150.0,0.0002431,4]
[422085457,1778560233000,-2850.55,0.00024174,5]
[422085456,1778560233000,-1212.72,0.00024174,2]
[422085464,1778560233000,-150.0,0.00024271,4]
[422085463,1778560233000,-150.0,0.00024259,4]
[422085468,1778560233000,-150.0,0.0002439,4]
[422085462,1778560233000,-150.0,0.00024241,4]
[422085467,1778560233000,-150.0,0.0002435,4]
[422085459,1778560233000,-150.99,0.00024174,2]
[422085452,1778560233000,-150.0,0.00024073,4]
[422085436,1778560233000,-150.0,0.0002373,4]
[422085449,1778560233000,-405.0,0.00024,2]
[422085465,1778560233000,-150.0,0.00024302,4]
[422085435,1778560233000,-150.0,0.00023716,4]
[422085433,1778560233000,-150.0,0.00023682,4]
[422085434,1778560233000,-160.87,0.00023705,2]
[422085437,1778560233000,-150.0,0.00023756,4]
[422085439,1778560233000,-150.0,0.00023812,4]
[422085438,1778560233000,-150.0,0.00023796,4]
[422085450,1778560233000,-150.0,0.00024033,4]
[422085442,1778560233000,-150.0,0.00023875,4]
[422085441,1778560233000,-150.0,0.00023835,4]
[422085443,1778560233000,-150.0,0.00023914,4]
[422085447,1778560233000,-150.0,0.00023994,4]
[422085446,1778560233000,-150.0,0.0002397,4]
[422085445,1778560233000,-150.0,0.00023954,4]
[422085444,1778560233000,-150.0,0.00023934,4]
[422085448,1778560233000,-200.0,0.00024,2]
[422085440,1778560233000,-150.0,0.00023826,4]
[422085469,1778560233000,-504.0,0.00024397,2]
[422085487,1778560233000,-150.0,0.00024548,4]
[422085471,1778560233000,-150.0,0.00024404,4]
[422085493,1778560233000,-150.0,0.00024548,4]
[422085492,1778560233000,-150.0,0.00024548,4]
[422085497,1778560233000,-1000.0,0.00024658,2]
[422085498,1778560233000,-187.97,0.00024658,2]
[422085495,1778560233000,-1613.0,0.00024557,2]
[422085496,1778560233000,-295.58,0.000246,7]
[422085499,1778560233000,-202.0,0.00025,2]
[422085500,1778560233000,-421.0,0.00025,2]
[422085502,1778560233000,-229.09827526,0.000252,2]
[422085501,1778560233000,-3475.35,0.00025013,30]
[422085503,1778560233000,-214.86625456,0.00025235,2]
[422085505,1778560233000,-195.16732431,0.00025467,2]
[422085506,1778560233000,-1183.78537011,0.00025467,2]
[422085504,1778560233000,-1178.13042958,0.00025467,2]
[422085507,1778560233000,-34288.13902538,0.00025567,2]
[422085490,1778560233000,-150.0,0.00024548,4]
[422085491,1778560233000,-150.40896932,0.00024548,4]
[422085494,1778560233000,-150.0,0.00024548,4]
[422085472,1778560233000,-150.0,0.00024429,4]
[422085470,1778560233000,-503.0,0.00024397,2]
[422085473,1778560233000,-1821.81068119,0.00024457,2]
[422085475,1778560233000,-477.0558266,0.00024457,2]
[422085474,1778560233000,-73763.07807809,0.00024457,2]
[422085489,1778560233000,-150.0,0.00024548,4]
[422085477,1778560233000,-687.69603829,0.00024457,2]
[422085478,1778560233000,-463.38560571,0.00024457,2]
[422085479,1778560233000,-550.23948953,0.00024457,2]
[422085476,1778560233000,-4296.24383995,0.00024457,2]
[422085482,1778560233000,-150.0,0.00024469,4]
[422085483,1778560233000,-184.1746889,0.000245,2]
[422085481,1778560233000,-5000.0,0.00024457,2]
[422085486,1778560233000,-216.77509963,0.00024547,2]
[422085488,1778560233000,-150.0,0.00024548,4]
[422085485,1778560233000,-150.0,0.00024508,4]
[422085484,1778560233000,-3295.20425218,0.000245,2]
[422085480,1778560233000,-16987.19484064,0.00024457,2]
[422085517,1778560237000,-69935.40988944,0.00025567,2]
[422085512,1778560237000,-150.0,0.00024141,2]
[422085515,1778560237000,-811310.36602316,0.00025567,2]
[422085516,1778560237000,-378575.73311978,0.00025567,2]
[422085511,1778560237000,-957.56901193,0.0001464,2]
[422085513,1778560237000,-187.95,0.00024658,2]
[422085510,1778560237000,-574.31032607,0.0001464,2]
[422085518,1778560237000,-26533.17456064,0.00025567,2]
[422085514,1778560237000,-815.93783868,0.00025567,2]
[422085519,1778560237000,-178541.23954292,0.00025567,2]
[422085522,1778560237000,-239.78,0.00025718,2]
[422085524,1778560237000,-1701.05,0.00025768,2]
[422085526,1778560237000,-1209.18961582,0.00025856,2]
[422085523,1778560237000,-3295.20425213,0.00025762,2]
[422085527,1778560237000,-263.50783151,0.00025856,2]
[422085521,1778560237000,-500.0,0.00025573,2]
[422085525,1778560237000,-1212.72,0.00025786,2]
[422085530,1778560237000,-1267.23,0.00026058,2]
[422085529,1778560237000,-1261.17,0.00026055,2]
[422085528,1778560237000,-2141.89356103,0.00025856,2]
[422085531,1778560237000,-1261.17,0.00026082,7]
[422085520,1778560237000,-769.95532185,0.00025567,2]
[422085577,1778560238000,-184.17468888,0.00027261,2]
[422085572,1778560238000,-1267.24,0.00026575,7]
[422085573,1778560238000,-1261.28,0.00026575,7]
[422085575,1778560238000,-686.0,0.00026857,2]
[422085571,1778560238000,-1267.23,0.00026548,2]
[422085567,1778560238000,-295.58,0.000265,7]
[422085578,1778560238000,-4100.08,0.00027397,10]
[422085568,1778560238000,-1267.23,0.0002652,7]
[422085576,1778560238000,-3295.20425213,0.00027025,2]
[422085570,1778560238000,-1261.17,0.00026547,2]
[422085566,1778560238000,-1261.17,0.00026493,7]
[422085565,1778560238000,-1267.23,0.00026493,7]
[422085569,1778560238000,-1261.17,0.0002652,7]
[422085574,1778560238000,-150.0,0.00026849,2]
[422085585,1778560238000,-3475.35,0.00027953,60]
[422085580,1778560238000,-2847.28,0.00027397,10]
[422085581,1778560238000,-1168.92,0.000274,14]
[422085582,1778560238000,-1183.78537008,0.00027698,2]
[422085586,1778560238000,-3295.20425213,0.00028287,2]
[422085583,1778560238000,-2403.79,0.00027771,2]
[422085587,1778560238000,-1701.05,0.00028345,2]
[422085588,1778560238000,-36630.16,0.00028564,2]
[422085589,1778560238000,-504.0,0.00029031,6]
[422085590,1778560238000,-194.1,0.00029358,120]
[422085584,1778560238000,-509.70647062,0.000278,7]
[422085594,1778560238000,-1183.78537008,0.00029929,2]
[422085591,1778560238000,-295.58,0.000294,7]
[422085561,1778560238000,-1267.23,0.00026439,2]
[422085579,1778560238000,-3416.73,0.00027397,10]
[422085562,1778560238000,-1261.17,0.00026465,2]
[422085532,1778560238000,-1267.23,0.00026085,7]
[422085558,1778560238000,-1267.23,0.00026411,7]
[422085593,1778560238000,-3295.20425213,0.0002955,2]
[422085533,1778560238000,-1261.17,0.00026109,2]
[422085535,1778560238000,-471.99431842,0.00026121,2]
[422085537,1778560238000,-1267.23,0.00026139,2]
[422085534,1778560238000,-1267.23,0.00026112,2]
[422085536,1778560238000,-1261.17,0.00026137,2]
[422085538,1778560238000,-1261.17,0.00026164,7]
[422085540,1778560238000,-1261.17,0.00026191,7]
[422085550,1778560238000,-1261.17,0.00026301,2]
[422085539,1778560238000,-1267.23,0.00026166,7]
[422085551,1778560238000,-1267.23,0.00026303,2]
[422085542,1778560238000,-1261.17,0.00026219,2]
[422085541,1778560238000,-1267.23,0.00026194,7]
[422085543,1778560238000,-1267.23,0.00026221,2]
[422085544,1778560238000,-1261.17,0.00026246,7]
[422085546,1778560238000,-152.0,0.00026262,7]
[422085545,1778560238000,-1267.23,0.00026248,7]
[422085548,1778560238000,-1261.17,0.00026274,2]
[422085547,1778560238000,-152.0,0.00026262,7]
[422085549,1778560238000,-1267.23,0.00026275,2]
[422085552,1778560238000,-1261.17,0.00026328,7]
[422085556,1778560238000,-1261.17,0.00026383,2]
[422085555,1778560238000,-1267.23,0.00026357,7]
[422085554,1778560238000,-1261.17,0.00026356,7]
[422085563,1778560238000,-1267.23,0.00026466,2]
[422085564,1778560238000,-3475.35,0.00026483,30]
[422085553,1778560238000,-1267.23,0.0002633,7]
[422085557,1778560238000,-1267.23,0.00026384,2]
[422085559,1778560238000,-1261.17,0.00026411,7]
[422085560,1778560238000,-1261.17,0.00026438,2]
[422085592,1778560238000,-3475.35,0.00029423,60]
[422085605,1778560238000,-500.0,0.00029999,2]
[422085597,1778560238000,-500.0,0.00029999,2]
[422085639,1778560238000,-1701.05,0.00030922,2]
[422085628,1778560238000,-152.0,0.00030583,30]
[422085630,1778560238000,-152.0,0.00030583,30]
[422085631,1778560238000,-200.0,0.00030583,30]
[422085636,1778560238000,-150.29414489,0.000308,2]
[422085633,1778560238000,-153.0,0.00030583,30]
[422085632,1778560238000,-405.0,0.00030583,30]
[422085641,1778560238000,-159.0,0.00031583,30]
[422085638,1778560238000,-3475.35,0.00030893,60]
[422085637,1778560238000,-3295.20425213,0.00030812,2]
[422085634,1778560238000,-150.2941449,0.000308,2]
[422085635,1778560238000,-150.29414489,0.000308,2]
[422085645,1778560238000,-405.0,0.00031583,30]
[422085640,1778560238000,-1000.0,0.00030988,5]
[422085642,1778560238000,-154.0,0.00031583,30]
[422085654,1778560238000,-184.17468888,0.00032783,2]
[422085653,1778560238000,-153.0,0.00032583,30]
[422085651,1778560238000,-200.0,0.00032583,30]
[422085648,1778560238000,-1183.78537008,0.0003216,2]
[422085646,1778560238000,-153.0,0.00031583,30]
[422085647,1778560238000,-3295.20425213,0.00032075,2]
[422085650,1778560238000,-3475.35,0.00032363,60]
[422085644,1778560238000,-200.0,0.00031583,30]
[422085649,1778560238000,-194.1,0.00032294,120]
[422085652,1778560238000,-405.0,0.00032583,30]
[422085655,1778560238000,-167.88917837,0.00032877,60]
[422085656,1778560238000,-3000.0,0.00032877,120]
[422085658,1778560238000,-1178.13042958,0.00033275,2]
[422085643,1778560238000,-152.0,0.00031583,30]
[422085629,1778560238000,-154.0,0.00030583,30]
[422085600,1778560238000,-500.0,0.00029999,2]
[422085626,1778560238000,-156.38,0.0003029,2]
[422085621,1778560238000,-300.0,0.00029999,2]
[422085599,1778560238000,-500.0,0.00029999,2]
[422085596,1778560238000,-500.0,0.00029999,2]
[422085598,1778560238000,-500.0,0.00029999,2]
[422085595,1778560238000,-500.0,0.00029999,2]
[422085602,1778560238000,-500.0,0.00029999,2]
[422085613,1778560238000,-500.0,0.00029999,2]
[422085601,1778560238000,-500.0,0.00029999,2]
[422085612,1778560238000,-500.0,0.00029999,2]
[422085603,1778560238000,-500.0,0.00029999,2]
[422085610,1778560238000,-500.0,0.00029999,2]
[422085657,1778560238000,-1168.92,0.000329,14]
[422085606,1778560238000,-500.0,0.00029999,2]
[422085611,1778560238000,-500.0,0.00029999,2]
[422085604,1778560238000,-500.0,0.00029999,2]
[422085607,1778560238000,-600.0,0.00029999,2]
[422085608,1778560238000,-500.0,0.00029999,2]
[422085627,1778560238000,-500.0,0.0003044,5]
[422085624,1778560238000,-552.8422574,0.00029999,2]
[422085618,1778560238000,-500.0,0.00029999,2]
[422085620,1778560238000,-500.0,0.00029999,2]
[422085617,1778560238000,-185.14870509,0.00029999,2]
[422085623,1778560238000,-255.33899487,0.00029999,2]
[422085622,1778560238000,-500.0,0.00029999,2]
[422085625,1778560238000,-184.17468888,0.00030022,2]
[422085619,1778560238000,-500.0,0.00029999,2]
[422085616,1778560238000,-500.0,0.00029999,2]
[422085614,1778560238000,-500.0,0.00029999,2]
[422085609,1778560238000,-500.0,0.00029999,2]
[422085615,1778560238000,-500.0,0.00029999,2]
[422085697,1778560239000,-527.64434,0.00035962,7]
[422085704,1778560239000,-500.0,0.0003655,5]
[422085699,1778560239000,-151.0,0.00036153,30]
[422085700,1778560239000,-1168.92,0.000362,14]
[422085701,1778560239000,-1000.0,0.00036521,5]
[422085693,1778560239000,-5149.6957121,0.00035962,2]
[422085696,1778560239000,-527.64434,0.00035962,7]
[422085698,1778560239000,-500.0,0.00035973,5]
[422085703,1778560239000,-202.30617222,0.0003655,5]
[422085690,1778560239000,-347.517931,0.00035962,7]
[422085689,1778560239000,-347.517931,0.00035962,7]
[422085707,1778560239000,-1183.78537008,0.00036621,2]
[422085708,1778560239000,-3475.35,0.00036772,90]
[422085709,1778560239000,-702.8579,0.00036954,2]
[422085718,1778560239000,-300.0,0.00037057,2]
[422085706,1778560239000,-405.0,0.00036583,30]
[422085702,1778560239000,-500.0,0.00036523,5]
[422085711,1778560239000,-1094.29459015,0.00037057,2]
[422085723,1778560239000,-300.0,0.00037057,2]
[422085721,1778560239000,-300.0,0.00037057,2]
[422085714,1778560239000,-300.0,0.00037057,2]
[422085722,1778560239000,-300.0,0.00037057,2]
[422085720,1778560239000,-300.0,0.00037057,2]
[422085719,1778560239000,-300.0,0.00037057,2]
[422085717,1778560239000,-300.0,0.00037057,2]
[422085715,1778560239000,-300.0,0.00037057,2]
[422085716,1778560239000,-300.0,0.00037057,2]
[422085713,1778560239000,-300.0,0.00037057,2]
[422085687,1778560239000,-602563.2148304,0.00035962,2]
[422085705,1778560239000,-200.0,0.00036583,30]
[422085694,1778560239000,-527.64434,0.00035962,7]
[422085678,1778560239000,-405.0,0.00035583,30]
[422085692,1778560239000,-347.517931,0.00035962,7]
[422085659,1778560239000,-3295.20425213,0.00033337,2]
[422085710,1778560239000,-300.0,0.00037057,2]
[422085667,1778560239000,-151.0,0.00034182,7]
[422085661,1778560239000,-405.0,0.00033583,30]
[422085663,1778560239000,-504.0,0.00033664,11]
[422085666,1778560239000,-3475.35,0.00033832,90]
[422085668,1778560239000,-1183.78537008,0.0003439,2]
[422085664,1778560239000,-150.056,0.00033755,36]
[422085662,1778560239000,-153.0,0.00033583,30]
[422085665,1778560239000,-1081.289,0.00033755,36]
[422085670,1778560239000,-405.0,0.00034583,30]
[422085669,1778560239000,-200.0,0.00034583,30]
[422085682,1778560239000,-1833.0113205,0.00035962,2]
[422085681,1778560239000,-3295.20425213,0.00035862,2]
[422085680,1778560239000,-167.96450467,0.00035616,7]
[422085674,1778560239000,-295.58,0.000353,7]
[422085672,1778560239000,-3295.20425213,0.000346,2]
[422085679,1778560239000,-157.0,0.00035583,30]
[422085673,1778560239000,-194.1,0.0003523,120]
[422085676,1778560239000,-184.17468888,0.00035543,2]
[422085677,1778560239000,-200.0,0.00035583,30]
[422085675,1778560239000,-3475.35,0.00035302,90]
[422085671,1778560239000,-153.0,0.00034583,30]
[422085684,1778560239000,-2236.5299495,0.00035962,2]
[422085685,1778560239000,-296424.5485065,0.00035962,2]
[422085683,1778560239000,-286017.6345505,0.00035962,2]
[422085691,1778560239000,-347.517931,0.00035962,7]
[422085686,1778560239000,-4475.075976,0.00035962,2]
[422085688,1778560239000,-151.0,0.00035962,7]
[422085695,1778560239000,-527.64434,0.00035962,7]
[422085660,1778560239000,-200.0,0.00033583,30]
[422085712,1778560239000,-300.0,0.00037057,2]
[422085737,1778560239000,-893.04482543,0.00037057,2]
[422085772,1778560239000,-300.0,0.00037057,2]
[422085759,1778560239000,-526.68525168,0.00037057,2]
[422085764,1778560239000,-1146.71946024,0.00037057,2]
[422085768,1778560239000,-300.0,0.00037057,2]
[422085770,1778560239000,-864.10865205,0.00037057,2]
[422085774,1778560239000,-1809.24690158,0.00037057,2]
[422085776,1778560239000,-300.0,0.00037057,2]
[422085775,1778560239000,-300.0,0.00037057,2]
[422085777,1778560239000,-300.0,0.00037057,2]
[422085778,1778560239000,-310.77293504,0.00037057,2]
[422085781,1778560239000,-300.0,0.00037057,2]
[422085782,1778560239000,-576.93890108,0.00037057,2]
[422085779,1778560239000,-300.0,0.00037057,2]
[422085783,1778560239000,-300.0,0.00037057,2]
[422085780,1778560239000,-463.6616139,0.00037057,2]
[422085784,1778560239000,-451.72868137,0.00037057,2]
[422085785,1778560239000,-300.0,0.00037057,2]
[422085789,1778560239000,-300.0,0.00037057,2]
[422085788,1778560239000,-300.0,0.00037057,2]
[422085787,1778560239000,-300.0,0.00037057,2]
[422085790,1778560239000,-300.0,0.00037057,2]
[422085786,1778560239000,-300.0,0.00037057,2]
[422085793,1778560239000,-300.0,0.00037057,2]
[422085791,1778560239000,-483.88780455,0.00037057,2]
[422085792,1778560239000,-309.70196001,0.00037057,2]
[422085794,1778560239000,-300.0,0.00037057,2]
[422085796,1778560239000,-300.0,0.00037057,2]
[422085795,1778560239000,-300.0,0.00037057,2]
[422085724,1778560239000,-300.0,0.00037057,2]
[422085762,1778560239000,-300.0,0.00037057,2]
[422085760,1778560239000,-300.0,0.00037057,2]
[422085797,1778560239000,-1094.29459015,0.00037057,2]
[422085757,1778560239000,-300.0,0.00037057,2]
[422085725,1778560239000,-492.49408754,0.00037057,2]
[422085736,1778560239000,-1066.50381929,0.00037057,2]
[422085735,1778560239000,-300.0,0.00037057,2]
[422085727,1778560239000,-300.0,0.00037057,2]
[422085726,1778560239000,-300.0,0.00037057,2]
[422085728,1778560239000,-300.0,0.00037057,2]
[422085732,1778560239000,-300.0,0.00037057,2]
[422085734,1778560239000,-527.54022817,0.00037057,2]
[422085766,1778560239000,-309.46605895,0.00037057,2]
[422085730,1778560239000,-604.21547136,0.00037057,2]
[422085731,1778560239000,-300.0,0.00037057,2]
[422085733,1778560239000,-300.0,0.00037057,2]